bitfinex-derivatives/quotes_BTCF0:USTF0_20250422
["timestamp","ask_amount","ask_price","bid_price","bid_amount"]
[1745286159580,0.14668061,88502.0,88499.0,0.1129933]
[1745286160279,0.212992,88500.0,88499.0,0.1129933]
[1745286160469,0.212992,88500.0,88499.0,0.1234184]
[1745286160675,0.213072,88500.0,88499.0,0.1234184]
[1745286160874,0.212992,88500.0,88499.0,0.1234184]
[1745286161071,0.10008,88500.0,88499.0,0.1234184]
[1745286161277,0.1,88500.0,88499.0,0.1234184]
[1745286161470,0.10008,88500.0,88499.0,0.1234184]
[1745286161681,0.1,88500.0,88499.0,0.3334184]
[1745286161984,0.1129838,88507.0,88500.0,0.0564954]
[1745286162184,0.1129838,88507.0,88506.0,0.1129844]
[1745286162382,0.00010801,88509.0,88508.0,0.1129818]
[1745286162685,0.05659321,88517.0,88516.0,0.1129716]
[1745286163070,0.05659321,88517.0,88516.0,0.1119716]
[1745286163278,0.00010801,88517.0,88516.0,0.1119716]
[1745286163472,0.0564828,88521.0,88520.0,0.1694467]
[1745286164183,0.0564828,88521.0,88520.0,0.3604467]
[1745286165080,0.09004,88523.0,88522.0,0.112964]
[1745286165376,0.1129627,88523.0,88522.0,0.112964]
[1745286165982,0.1129627,88523.0,88522.0,0.1194]
[1745286166188,0.1129806,88509.0,88503.0,0.3608]
[1745286166487,0.1129806,88509.0,88493.0,0.1130006]
[1745286166488,0.1329806,88509.0,88508.0,1e-08]
[1745286166678,0.2459646,88509.0,88508.0,1e-08]
[1745286167180,0.4379646,88509.0,88508.0,1e-08]
[1745286167376,0.6906646,88509.0,88508.0,1e-08]
[1745286167679,0.6677206,88509.0,88508.0,1e-08]
[1745286168080,0.4557206,88509.0,88508.0,0.11298181]
[1745286168285,0.4558006,88509.0,88508.0,0.11298181]
[1745286168586,0.4558006,88509.0,88508.0,0.11398181]
[1745286169090,0.6478006,88509.0,88508.0,0.00100001]
[1745286169391,0.3951006,88509.0,88508.0,0.11398181]
[1745286169583,0.3950206,88509.0,88508.0,0.11398181]
[1745286169783,0.3951006,88509.0,88508.0,0.11398181]
[1745286170282,0.2031006,88509.0,88508.0,0.11398181]
[1745286170483,0.2031006,88509.0,88508.0,0.11498181]
[1745286170989,0.2031006,88509.0,88508.0,0.11398181]
[1745286171181,0.2031006,88509.0,88508.0,0.11598181]
[1745286171589,0.2031006,88509.0,88508.0,0.00300001]
[1745286171897,0.113001,88493.0,88492.0,0.4114]
[1745286172087,0.113001,88493.0,88491.0,0.3608]
[1745286172088,0.1130023,88492.0,88491.0,0.3608]
[1745286172284,0.2407023,88492.0,88491.0,0.3608]
[1745286173883,0.2407023,88492.0,88491.0,0.3618]
[1745286174283,0.2407023,88492.0,88491.0,0.001]
[1745286174487,0.1130023,88492.0,88491.0,0.002]
[1745286175091,0.1130023,88492.0,88491.0,0.001]
[1745286179583,0.3584023,88492.0,88491.0,0.001]
[1745286180094,0.0565102,88478.0,88465.0,0.3608]
[1745286180288,0.1130482,88456.0,88455.0,0.1232]
[1745286180792,0.1130482,88456.0,88445.0,0.58697637]
[1745286180793,0.0565259,88454.0,88445.0,0.22617637]
[1745286181089,0.4738546,88451.0,88450.0,0.12369672]
[1745286181699,0.1130546,88451.0,88450.0,0.12369672]
[1745286181992,0.3662546,88451.0,88450.0,0.12369672]
[1745286182198,0.4560146,88451.0,88450.0,0.12469672]
[1745286183488,0.4560146,88451.0,88450.0,0.12569672]
[1745286183684,0.2028146,88451.0,88450.0,0.12569672]
[1745286183895,0.2028146,88451.0,88450.0,0.23875262]
[1745286184091,0.2028946,88451.0,88450.0,0.23775262]
[1745286184399,0.2028946,88451.0,88450.0,0.23875262]
[1745286184694,0.2028946,88451.0,88450.0,0.12569672]
[1745286185198,0.3948946,88451.0,88450.0,0.12569672]
[1745286185590,0.6397946,88451.0,88450.0,0.12569672]
[1745286186391,0.5173946,88451.0,88450.0,0.12569672]
[1745286186693,0.19208,88451.0,88450.0,0.23875262]
[1745286187088,0.1130546,88451.0,88450.0,0.31769672]
[1745286187291,0.1131346,88451.0,88450.0,0.31769672]
[1745286187485,0.4738546,88451.0,88450.0,0.31769672]
[1745286187694,0.4739346,88451.0,88450.0,0.31769672]
[1745286187900,0.3648346,88451.0,88450.0,0.31769672]
[1745286188286,0.4545946,88451.0,88450.0,0.12569672]
[1745286188496,0.4545146,88451.0,88450.0,0.12569672]
[1745286188695,0.4545946,88451.0,88450.0,0.12569672]
[1745286189501,0.2028946,88451.0,88450.0,0.12569672]
[1745286189694,0.08984,88451.0,88450.0,0.23875262]
[1745286190001,0.2028146,88451.0,88450.0,0.23875262]
[1745286190194,0.2028946,88451.0,88450.0,0.43075262]
[1745286192607,0.1131346,88451.0,88450.0,0.43075262]
[1745286193096,0.056524,88457.0,88456.0,0.1695693]
[1745286193699,0.00016951,88461.0,88460.0,0.1130431]
[1745286194102,0.11321141,88461.0,88460.0,0.3050431]
[1745286194300,0.11329141,88461.0,88460.0,0.3050431]
[1745286194499,0.00024951,88461.0,88460.0,0.31563426]
[1745286195100,0.11329141,88461.0,88460.0,0.31563426]
[1745286196505,0.20000694,88472.0,88471.0,0.1130291]
[1745286196801,0.14349304,88472.0,88471.0,0.4738291]
[1745286197011,0.25652084,88472.0,88471.0,0.4738291]
[1745286197304,0.1131078,88472.0,88471.0,0.6658291]
[1745286197500,0.1131078,88472.0,88471.0,1.0445291]
[1745286197707,8e-05,88472.0,88471.0,1.0475291]
[1745286198103,8e-05,88472.0,88471.0,1.1605611]
[1745286198307,0.00016885,88480.0,88479.0,0.1130189]
[1745286198500,0.00016885,88480.0,88479.0,0.4738189]
[1745286198904,0.0898,88494.0,88493.0,0.113001]
[1745286199208,0.2027997,88494.0,88493.0,0.113001]
[1745286199406,8e-05,88494.0,88493.0,0.113001]
[1745286199600,0.1129934,88499.0,88498.0,0.1129946]
[1745286199802,0.0564954,88501.0,88500.0,0.112992]
[1745286200201,0.0564954,88501.0,88500.0,0.304992]
[1745286200402,0.0564954,88501.0,88500.0,0.555992]
[1745286201198,0.0564954,88501.0,88500.0,0.251]
[1745286201407,0.6181,88504.0,88490.0,0.36096951]
[1745286201611,0.1130023,88492.0,88491.0,0.2472]
[1745286201908,0.0564992,88495.0,88491.0,0.2472]
[1745286202111,0.0564967,88499.0,88498.0,0.1129946]
[1745286202302,0.0564958,88501.0,88500.0,0.112992]
[1745286202702,8e-05,88501.0,88500.0,0.112992]
[1745286202904,0.1130708,88501.0,88500.0,0.112992]
[1745286203505,0.1140708,88501.0,88500.0,0.112992]
[1745286204107,0.1129959,88497.0,88496.0,0.245]
[1745286204309,0.1129959,88497.0,88496.0,0.1227]
[1745286204607,0.1130035,88491.0,88490.0,0.00016951]
[1745286206107,0.2362035,88491.0,88490.0,0.00016951]
[1745286206308,0.2362035,88491.0,88490.0,0.00116951]
[1745286206504,0.2362035,88491.0,88490.0,0.00216951]
[1745286206699,0.2362835,88491.0,88490.0,0.11517431]
[1745286208307,0.1130835,88491.0,88490.0,0.11517431]
[1745286209207,0.1130835,88491.0,88490.0,0.30717431]
[1745286210305,0.1130835,88491.0,88490.0,0.11517431]
[1745286213210,8e-05,88491.0,88490.0,0.11517431]
[1745286213713,0.169501,88496.0,88495.0,0.1129971]
[1745286213907,0.0564992,88496.0,88495.0,0.1129971]
[1745286214211,0.0564992,88496.0,88495.0,0.3049971]
[1745286216107,0.0564992,88496.0,88495.0,0.3059971]
[1745286216606,0.0564992,88496.0,88495.0,0.3079971]
[1745286217618,0.11459233,88499.0,88495.0,0.3079971]
[1745286217619,0.11459233,88499.0,88498.0,0.1129946]
[1745286218116,0.11459233,88499.0,88498.0,0.3049946]
[1745286219013,0.11467233,88499.0,88498.0,0.3049946]
[1745286219214,8e-05,88499.0,88498.0,0.3049946]
[1745286219414,8e-05,88499.0,88498.0,0.3069946]
[1745286219916,8e-05,88499.0,88498.0,0.194]
[1745286219917,0.1130733,88499.0,88498.0,0.194]
[1745286220115,0.1130733,88499.0,88498.0,0.002]
[1745286220315,0.1130733,88499.0,88498.0,0.1149946]
[1745286220722,0.3612733,88499.0,88498.0,0.1149946]
[1745286221015,0.3612733,88499.0,88498.0,0.1179946]
[1745286221719,0.3612733,88499.0,88498.0,0.1149946]
[1745286222422,0.3612733,88499.0,88498.0,0.002]
[1745286223611,0.3612733,88499.0,88498.0,0.1149946]
[1745286223818,0.2392733,88499.0,88498.0,0.1149946]
[1745286224017,0.2391933,88499.0,88498.0,0.1149946]
[1745286224209,0.2392733,88499.0,88498.0,0.1149946]
[1745286227624,0.2392733,88499.0,88498.0,0.002]
[1745286228012,0.23628,88499.0,88490.0,0.00016951]
[1745286228216,0.1130035,88491.0,88490.0,0.00016951]
[1745286228431,0.1130035,88491.0,88467.0,0.4114]
[1745286228432,0.1130329,88469.0,88468.0,0.1130318]
[1745286228620,0.1130329,88469.0,88468.0,0.2435318]
[1745286228817,0.0565103,88480.0,88477.0,0.169529]
[1745286229026,0.3533189,88479.0,88478.0,0.1305]
[1745286229225,0.1130168,88485.0,88484.0,0.0565051]
[1745286229521,0.1695237,88485.0,88484.0,0.0565051]
[1745286229711,0.2898237,88485.0,88484.0,0.0565051]
[1745286230121,0.2898237,88485.0,88484.0,0.3197051]
[1745286230312,0.2899037,88485.0,88484.0,0.3197051]
[1745286230513,0.0565869,88485.0,88484.0,0.3197051]
[1745286231116,0.0565869,88485.0,88484.0,0.3207051]
[1745286231321,0.0565869,88485.0,88484.0,0.3217051]
[1745286231523,0.0565069,88485.0,88484.0,0.3217051]
[1745286231717,0.08948,88486.0,88485.0,0.1130112]
[1745286231920,0.2024899,88486.0,88485.0,0.3662112]
[1745286232625,0.1130099,88486.0,88485.0,0.3662112]
[1745286233125,0.056503,88490.0,88489.0,0.1130061]
[1745286233126,0.0565024,88490.0,88489.0,0.1130061]
[1745286233317,0.0565012,88492.0,88489.0,0.1130061]
[1745286233318,0.0565012,88492.0,88491.0,0.1130035]
[1745286233515,0.0565012,88492.0,88491.0,0.4738035]
[1745286233721,0.0565812,88492.0,88491.0,0.4738035]
[1745286233917,0.0565812,88492.0,88491.0,0.7208035]
[1745286234119,0.0565812,88492.0,88491.0,0.9128035]
[1745286234315,0.3019812,88492.0,88491.0,0.9128035]
[1745286234518,0.3019812,88492.0,88491.0,0.192]
[1745286234714,0.4119812,88492.0,88491.0,0.192]
[1745286234929,0.4119812,88492.0,88491.0,0.193]
[1745286235121,0.4119812,88492.0,88491.0,0.001]
[1745286235323,0.4119812,88492.0,88491.0,0.002]
[1745286235527,0.3019812,88492.0,88491.0,0.1140035]
[1745286235828,0.1771812,88492.0,88491.0,0.1130035]
[1745286236016,0.00016951,88493.0,88492.0,0.1130023]
[1745286236528,0.11317051,88493.0,88492.0,0.1130023]
[1745286236829,0.11325051,88493.0,88492.0,0.2330023]
[1745286237225,0.11325051,88493.0,88492.0,0.4250023]
[1745286238228,0.11325051,88493.0,88492.0,0.2330023]
[1745286238622,0.11325051,88493.0,88492.0,0.2340023]
[1745286239229,0.11325051,88493.0,88492.0,0.2350023]
[1745286239432,0.00024951,88493.0,88492.0,0.2350023]
[1745286240022,0.00016951,88493.0,88492.0,0.2350023]
[1745286240226,0.00024951,88493.0,88492.0,0.4270023]
[1745286240525,0.00024951,88493.0,88492.0,0.5400063]
[1745286243224,0.11325051,88493.0,88492.0,0.314]
[1745286243419,0.24445051,88493.0,88492.0,0.194]
[1745286243637,0.1130201,88478.0,88477.0,0.2367168]
[1745286243831,0.1130201,88478.0,88477.0,0.7194168]
[1745286244126,0.1130181,88480.0,88479.0,0.1130176]
[1745286244520,0.1130106,88488.0,88487.0,0.1130074]
[1745286244726,0.1130106,88488.0,88487.0,0.4738074]
[1745286244920,0.0565018,88491.0,88490.0,0.1695041]
[1745286245328,0.0565818,88491.0,88490.0,0.1695041]
[1745286245830,0.1695871,88491.0,88490.0,0.1695041]
[1745286246421,8e-05,88491.0,88490.0,0.1695041]
[1745286246825,8e-05,88491.0,88490.0,0.1705041]
[1745286247025,0.00016951,88493.0,88492.0,0.1130023]
[1745286248229,0.00016951,88493.0,88492.0,0.3050023]
[1745286248433,0.00016951,88493.0,88492.0,0.4190063]
[1745286248730,0.11459233,88507.0,88492.0,0.4190063]
[1745286248731,0.00010801,88503.0,88502.0,0.1129895]
[1745286248930,0.00010801,88503.0,88502.0,0.4737895]
[1745286249132,0.00010801,88503.0,88502.0,0.6657895]
[1745286249530,0.11459233,88507.0,88506.0,0.1129844]
[1745286249739,0.11459233,88507.0,88506.0,0.12366579]
[1745286250438,0.11459233,88507.0,88506.0,0.31466579]
[1745286250932,0.14349304,88514.0,88513.0,0.1129754]
[1745286251134,0.14349304,88514.0,88513.0,0.6647754]
[1745286251530,0.08625271,88514.0,88513.0,0.6647754]
[1745286251732,0.08633271,88514.0,88513.0,0.192]
[1745286251931,0.19930691,88514.0,88513.0,0.192]
[1745286252236,0.19930691,88514.0,88511.0,0.3608]
[1745286252237,0.1129767,88512.0,88511.0,0.3608]
[1745286252928,0.3675767,88512.0,88511.0,0.473778]
[1745286253737,0.3675767,88512.0,88511.0,0.474778]
[1745286253940,0.2430767,88512.0,88511.0,0.474778]
[1745286254343,0.2431567,88512.0,88511.0,0.3618]
[1745286254544,0.7279567,88512.0,88511.0,0.001]
[1745286254842,0.1129933,88499.0,88497.0,0.3608]
[1745286255042,0.4737933,88499.0,88488.0,0.0565035]
[1745286255241,0.6657933,88499.0,88495.0,0.1129984]
[1745286255438,0.6657933,88499.0,88494.0,0.0564997]
[1745286255647,0.6657933,88499.0,88498.0,0.11316411]
[1745286256138,0.4737933,88499.0,88498.0,0.11416411]
[1745286256343,0.4738733,88499.0,88498.0,0.11416411]
[1745286256530,0.4738733,88499.0,88498.0,0.11516411]
[1745286256737,0.1130733,88499.0,88498.0,0.11516411]
[1745286256938,0.1129933,88499.0,88498.0,0.11516411]
[1745286257240,0.1130733,88499.0,88498.0,0.30816411]
[1745286257640,0.1130733,88499.0,88498.0,0.30716411]
[1745286257841,0.1130733,88499.0,88498.0,0.30916411]
[1745286258343,0.3630733,88499.0,88498.0,0.11716411]
[1745286259646,8e-05,88499.0,88498.0,0.11616411]
[1745286259846,0.1130733,88499.0,88498.0,0.24816411]
[1745286260145,8e-05,88499.0,88498.0,0.24716411]
[1745286260546,0.112987,88504.0,88503.0,0.1129882]
[1745286260844,0.00010801,88505.0,88504.0,0.1129869]
[1745286261241,0.00010801,88505.0,88504.0,0.4737869]
[1745286262046,0.1129806,88509.0,88508.0,0.1694696]
[1745286262244,0.0564815,88523.0,88504.0,0.3608]
[1745286262245,0.14349304,88534.0,88506.0,0.132]
[1745286262445,0.1236,88522.0,88520.0,0.1129665]
[1745286262645,0.1129652,88521.0,88520.0,0.1129665]
[1745286262947,0.2397652,88521.0,88520.0,0.1129665]
[1745286263139,0.2398452,88521.0,88520.0,0.2362665]
[1745286263541,0.2408452,88521.0,88520.0,0.2362665]
[1745286263949,0.2418452,88521.0,88520.0,0.1129665]
[1745286264749,0.1129703,88518.0,88517.0,0.1129695]
[1745286265251,0.5599703,88518.0,88517.0,0.1129695]
[1745286266849,0.5599703,88518.0,88513.0,0.3608]
[1745286266850,0.1129742,88514.0,88513.0,0.3608]
[1745286267151,0.1129933,88499.0,88498.0,0.11316411]
[1745286268047,0.3701933,88499.0,88498.0,0.11316411]
[1745286268646,0.3701933,88499.0,88498.0,0.11516411]
[1745286269553,0.1129803,88510.0,88509.0,0.1129793]
[1745286270152,0.2440803,88510.0,88509.0,0.2432793]
[1745286270353,0.00014581,88511.0,88510.0,0.1129793]
[1745286270549,0.11312381,88511.0,88510.0,0.1129793]
[1745286270945,0.112978,88511.0,88510.0,0.1129793]
[1745286271146,0.113058,88511.0,88510.0,0.3049793]
[1745286272349,0.113058,88511.0,88510.0,0.1129793]
[1745286273462,8e-05,88511.0,88510.0,0.1129793]
[1745286274158,0.0564846,88518.0,88517.0,0.1129691]
[1745286274350,0.00014581,88519.0,88518.0,0.1129691]
[1745286274550,0.1129678,88519.0,88518.0,0.1129691]
[1745286274860,0.1130478,88519.0,88518.0,0.1129691]
[1745286275057,0.3642478,88519.0,88518.0,0.1129691]
[1745286275959,0.3652478,88519.0,88518.0,0.1129691]
[1745286276155,0.3652478,88519.0,88518.0,0.1119691]
[1745286276861,0.3662478,88519.0,88518.0,0.1119691]
[1745286278062,0.1150478,88519.0,88518.0,0.1119691]
[1745286278360,0.00208,88519.0,88518.0,0.2381691]
[1745286278560,0.002,88519.0,88518.0,0.2381691]
[1745286278960,0.00208,88519.0,88518.0,0.2381691]
[1745286279153,0.1150478,88519.0,88518.0,0.2381691]
[1745286279360,0.1130478,88519.0,88518.0,0.2401691]
[1745286279552,0.1130478,88519.0,88518.0,0.1282]
[1745286279856,0.1130478,88519.0,88518.0,0.002]
[1745286280057,0.3050478,88519.0,88518.0,0.002]
[1745286280257,0.5467478,88519.0,88518.0,0.1139691]
[1745286280466,0.5466678,88519.0,88518.0,0.1149691]
[1745286280764,0.5467478,88519.0,88518.0,0.002]
[1745286281151,0.3547478,88519.0,88518.0,0.002]
[1745286281762,0.3547478,88519.0,88518.0,0.1149691]
[1745286282354,0.3547478,88519.0,88518.0,0.1139691]
[1745286284364,0.3547478,88519.0,88518.0,0.001]
[1745286284756,0.1130478,88519.0,88518.0,0.1139691]
[1745286284957,0.1129678,88519.0,88518.0,0.1139691]
[1745286285159,0.1130478,88519.0,88518.0,0.1139691]
[1745286286358,0.1129857,88505.0,88498.0,0.00016951]
[1745286286557,0.1129818,88508.0,88507.0,0.121]
[1745286286763,0.1129933,88499.0,88498.0,0.00016951]
[1745286287663,0.3636933,88499.0,88498.0,0.00016951]
[1745286290168,0.3636933,88499.0,88498.0,0.11316411]
[1745286290357,0.1129933,88499.0,88498.0,0.11316411]
[1745286290669,8e-05,88499.0,88498.0,0.11316411]
[1745286290967,0.0564954,88501.0,88500.0,0.1694849]
[1745286291158,0.0564954,88501.0,88500.0,0.2491]
[1745286291555,0.0564954,88501.0,88500.0,0.362092]
[1745286291768,0.00010801,88505.0,88504.0,0.1129869]
[1745286292065,0.1129759,88513.0,88508.0,0.1129818]
[1745286292265,0.00010801,88511.0,88508.0,0.1129818]
[1745286292462,0.0564872,88514.0,88508.0,0.1129818]
[1745286292663,0.25655364,88509.0,88508.0,0.1129818]
[1745286292971,0.25655364,88509.0,88505.0,0.3086922]
[1745286292972,0.1129844,88506.0,88505.0,0.2522]
[1745286293263,0.1129844,88506.0,88505.0,0.1295]
[1745286293469,0.1129844,88506.0,88505.0,0.2424857]
[1745286294463,0.1129844,88506.0,88505.0,0.2434857]
[1745286294865,0.1129844,88506.0,88505.0,0.2424857]
[1745286295064,0.1129844,88506.0,88505.0,0.2434857]
[1745286295866,0.1129844,88506.0,88505.0,0.2444857]
[1745286296072,0.0565704,88509.0,88505.0,0.1879922]
[1745286296277,0.1695534,88509.0,88508.0,0.1129818]
[1745286297469,0.0565704,88509.0,88508.0,0.1129818]
[1745286297775,0.0565704,88509.0,88508.0,0.1139818]
[1745286298172,0.0565704,88509.0,88508.0,0.1149818]
[1745286299275,0.0565704,88509.0,88508.0,0.1139818]
[1745286299478,0.0565704,88509.0,88508.0,0.1149818]
[1745286300774,0.0565704,88509.0,88508.0,0.1139818]
[1745286301074,0.0565704,88509.0,88508.0,0.1149818]
[1745286302472,0.0565704,88509.0,88508.0,0.002]
[1745286302666,0.0565704,88509.0,88498.0,0.00016951]
[1745286302667,0.1129933,88499.0,88498.0,0.00016951]
[1745286303070,0.1130061,88489.0,88473.0,0.7722]
[1745286303266,0.1130125,88484.0,88483.0,0.0565068]
[1745286303671,0.1130125,88484.0,88483.0,0.06737097]
[1745286304470,0.1130125,88484.0,88483.0,0.06937097]
[1745286304668,0.1130125,88484.0,88483.0,0.07037097]
[1745286305679,0.2130125,88484.0,88483.0,0.003]
[1745286305873,0.1130125,88484.0,88483.0,0.003]
[1745286306176,0.3950125,88484.0,88483.0,0.003]
[1745286306379,0.3050125,88484.0,88483.0,0.003]
[1745286307173,0.5838125,88484.0,88483.0,0.003]
[1745286307673,0.1130227,88476.0,88475.0,0.16956576]
[1745286307873,0.1130227,88476.0,88475.0,0.00016951]
[1745286307874,0.4738227,88476.0,88475.0,0.00016951]
[1745286308474,0.7237227,88476.0,88475.0,0.00016951]
[1745286309481,0.7237227,88476.0,88475.0,0.00216951]
[1745286309875,0.7237227,88476.0,88475.0,0.00416951]
[1745286311681,0.7237227,88476.0,88475.0,0.12316951]
[1745286312773,0.7237227,88476.0,88456.0,0.4173237]
[1745286312774,0.0565147,88471.0,88456.0,0.4173237]
[1745286312973,0.1130355,88466.0,88465.0,0.119]
[1745286313179,0.1130457,88458.0,88455.0,0.1130492]
[1745286313377,0.1130457,88458.0,88457.0,0.0123463]
[1745286313573,0.1130457,88458.0,88457.0,0.1253933]
[1745286313872,0.41748731,88466.0,88464.0,0.003]
[1745286314071,0.00016951,88466.0,88465.0,0.1160367]
[1745286314275,0.00016951,88466.0,88465.0,0.4768367]
[1745286314574,0.11320501,88466.0,88465.0,0.1160367]
[1745286314777,0.11328501,88466.0,88465.0,0.003]
[1745286314975,0.1130457,88458.0,88457.0,0.0173463]
[1745286315573,0.1130457,88458.0,88457.0,0.0203463]
[1745286315781,0.2299457,88458.0,88457.0,0.0203463]
[1745286316180,0.2309457,88458.0,88457.0,0.0173463]
[1745286316376,0.2309457,88458.0,88457.0,0.2486933]
[1745286317574,0.2309457,88458.0,88457.0,0.6094933]
[1745286320275,0.001,88458.0,88457.0,0.6094933]
[1745286320485,0.001,88458.0,88457.0,0.7232933]
[1745286320682,0.00108,88458.0,88457.0,0.7232933]
[1745286321177,0.00108,88458.0,88457.0,0.9152933]
[1745286321585,0.00108,88458.0,88457.0,0.9162933]
[1745286321784,8e-05,88458.0,88457.0,0.9172933]
[1745286322191,8e-05,88458.0,88457.0,0.9162933]
[1745286323090,0.1131257,88458.0,88457.0,0.9152933]
[1745286323290,8e-05,88458.0,88457.0,0.9172933]
[1745286327192,8e-05,88458.0,88457.0,0.93276714]
[1745286327487,8e-05,88458.0,88457.0,0.93276779]
[1745286328578,8e-05,88458.0,88457.0,0.93276161]
[1745286328996,0.1452714,88476.0,88465.0,0.1130367]
[1745286329188,0.0565165,88468.0,88465.0,0.48920455]
[1745286329385,0.11320501,88466.0,88465.0,0.4738367]
[1745286329691,0.11328501,88466.0,88465.0,0.4738367]
[1745286330192,0.35498501,88466.0,88465.0,0.4738367]
[1745286330595,0.35598501,88466.0,88465.0,0.4748367]
[1745286332692,0.35598501,88466.0,88465.0,0.4738367]
[1745286333191,0.35698501,88466.0,88465.0,0.4738367]
[1745286333389,0.35698501,88466.0,88465.0,0.48892561]
[1745286333585,0.35698501,88466.0,88465.0,0.48892645]
[1745286334793,0.35498501,88466.0,88465.0,0.48892645]
[1745286334989,0.35598501,88466.0,88465.0,0.48892645]
[1745286335193,0.23168501,88466.0,88465.0,0.48892645]
[1745286336486,0.11864951,88466.0,88465.0,0.48892645]
[1745286336986,0.23160501,88466.0,88465.0,0.48892645]
[1745286337186,0.23168501,88466.0,88465.0,0.48892645]
[1745286337997,0.11864951,88466.0,88465.0,0.48892645]
[1745286338190,0.11864951,88466.0,88465.0,0.48880669]
[1745286338589,0.23160501,88466.0,88465.0,0.48880669]
[1745286338790,0.11864951,88466.0,88465.0,0.48880669]
[1745286339190,0.11864951,88466.0,88465.0,0.68080669]
[1745286339699,0.00014581,88473.0,88465.0,0.68080669]
[1745286339700,0.00014581,88473.0,88472.0,0.1130278]
[1745286339896,0.00014581,88473.0,88472.0,0.12799779]
[1745286340092,0.00014581,88473.0,88472.0,0.18477252]
[1745286340093,0.1130265,88473.0,88472.0,0.18477252]
[1745286340293,0.1131065,88473.0,88472.0,0.30197252]
[1745286340599,0.12388,88473.0,88472.0,0.30197295]
[1745286340895,0.12388,88473.0,88472.0,0.31197295]
[1745286341094,0.12388,88473.0,88472.0,0.51397295]
[1745286341396,0.2369065,88473.0,88472.0,0.51397295]
[1745286341599,0.12388,88473.0,88472.0,0.51397295]
[1745286342900,8e-05,88473.0,88472.0,0.51497295]
[1745286343102,0.00016951,88481.0,88480.0,0.1130176]
[1745286343397,0.00016951,88481.0,88480.0,0.48904945]
[1745286343792,0.00024951,88481.0,88480.0,0.75374945]
[1745286344096,0.00024951,88481.0,88480.0,0.9305176]
[1745286344596,0.00016951,88481.0,88480.0,0.9305176]
[1745286344799,0.00024951,88481.0,88480.0,0.9305176]
[1745286344999,0.00016951,88481.0,88480.0,0.9305176]
[1745286345296,0.00024951,88481.0,88480.0,1.0445376]
[1745286345501,0.00024951,88481.0,88480.0,1.4153376]
[1745286345898,0.00024951,88481.0,88480.0,1.4053376]
[1745286346403,0.00024951,88481.0,88480.0,1.4153376]
[1745286346598,0.00024951,88481.0,88480.0,1.4173376]
[1745286347900,0.00024951,88481.0,88480.0,1.4073376]
[1745286348401,0.00024951,88481.0,88480.0,1.4173376]
[1745286348705,0.1208,88489.0,88488.0,0.1130074]
[1745286349002,0.1208,88489.0,88488.0,0.4938074]
[1745286349203,0.1208,88489.0,88488.0,0.6858074]
[1745286349704,0.1208,88489.0,88488.0,0.9327074]
[1745286350005,0.2461,88489.0,88488.0,0.9347074]
[1745286350692,0.00010801,88490.0,88489.0,0.1130061]
[1745286351004,0.2464,88501.0,88500.0,0.112992]
[1745286352100,0.2464,88501.0,88500.0,0.44239039]
[1745286352295,0.2474,88501.0,88500.0,0.46239039]
[1745286352491,0.2474,88501.0,88500.0,0.453892]
[1745286352700,0.12218,88501.0,88500.0,0.453892]
[1745286352904,0.01316041,88517.0,88500.0,1.00373175]
[1745286353199,0.0131324,88517.0,88516.0,0.1129716]
[1745286353603,0.0130524,88517.0,88516.0,0.1129716]
[1745286353801,0.0131324,88517.0,88516.0,0.1129716]
[1745286354302,0.0131324,88517.0,88516.0,0.2419716]
[1745286354492,0.0130524,88517.0,88516.0,0.2419716]
[1745286354801,0.0131324,88517.0,88516.0,0.2519716]
[1745286355099,0.0131324,88517.0,88516.0,0.4639716]
[1745286355100,8e-05,88517.0,88516.0,0.4639716]
[1745286355305,0.00108,88517.0,88516.0,0.4639716]
[1745286356397,0.00108,88517.0,88516.0,0.3349716]
[1745286356702,0.24928,88517.0,88516.0,0.3349716]
[1745286357303,0.24928,88517.0,88516.0,0.1429716]
[1745286357600,0.24928,88517.0,88516.0,0.2690716]
[1745286359311,0.12088,88517.0,88516.0,0.2690716]
[1745286359503,0.00108,88517.0,88516.0,0.2690716]
[1745286359698,0.00108,88517.0,88516.0,0.2390716]
[1745286360204,0.00108,88517.0,88516.0,0.4510716]
[1745286360399,0.001,88517.0,88516.0,0.4510716]
[1745286360806,0.00108,88517.0,88516.0,0.4510716]
[1745286362199,0.00108,88517.0,88516.0,0.8624716]
[1745286368112,0.00108,88517.0,88516.0,0.9820716]
[1745286369503,0.001,88517.0,88516.0,0.9820716]
[1745286369702,0.00108,88517.0,88516.0,0.9820716]
[1745286370308,1e-07,88517.0,88516.0,0.9820716]
[1745286370505,1e-07,88517.0,88516.0,1.0950436]
[1745286371317,0.1266,88525.0,88524.0,0.1129614]
[1745286371524,0.1266,88525.0,88524.0,0.8951614]
[1745286372505,0.1276,88525.0,88524.0,0.8951614]
[1745286373023,0.1276,88525.0,88524.0,1.0156614]
[1745286373320,0.001,88525.0,88524.0,1.2076614]
[1745286373716,0.002,88525.0,88524.0,1.2076614]
[1745286373913,0.002,88525.0,88524.0,1.0871614]
[1745286374113,0.002,88525.0,88524.0,0.8951614]
[1745286374418,0.1183,88525.0,88524.0,0.8851614]
[1745286376821,0.1183,88525.0,88524.0,0.4737614]
[1745286377918,0.1183,88525.0,88524.0,0.6003614]
[1745286380713,0.1183,88525.0,88524.0,0.6203614]
[1745286381123,0.1183,88525.0,88524.0,0.8123614]
[1745286381616,0.1183,88525.0,88524.0,0.6857614]
[1745286381820,0.11838,88525.0,88524.0,0.8056614]
[1745286382219,0.11838,88525.0,88524.0,0.6136614]
[1745286382423,0.005,88529.0,88528.0,0.1129563]
[1745286383216,0.005,88529.0,88528.0,0.3612563]
[1745286383418,0.005,88529.0,88528.0,0.2413563]
[1745286383618,0.006,88529.0,88526.0,0.4114]
[1745286383924,0.1129576,88527.0,88526.0,0.4114]
[1745286384115,0.1129576,88527.0,88526.0,0.5243589]
[1745286384315,0.3602576,88527.0,88526.0,0.5243589]
[1745286385019,0.3602576,88527.0,88526.0,0.5253589]
[1745286385613,0.2473,88527.0,88526.0,0.5253589]
[1745286386726,0.2473,88527.0,88526.0,0.5263589]
[1745286387024,0.3602576,88527.0,88526.0,0.5263589]
[1745286387715,0.3602576,88527.0,88526.0,0.002]
[1745286387918,0.3602576,88527.0,88516.0,0.00016951]
[1745286387919,0.1129703,88517.0,88516.0,0.00016951]
[1745286388120,0.1129793,88510.0,88509.0,0.16939625]
[1745286389116,0.9180793,88510.0,88509.0,0.16939625]
[1745286389729,0.9180793,88510.0,88509.0,0.17039625]
[1745286390714,0.9180793,88510.0,88509.0,0.17139625]
[1745286391124,0.9180793,88510.0,88509.0,0.002]
[1745286392225,0.9190793,88510.0,88509.0,0.001]
[1745286393223,0.1129831,88507.0,88506.0,0.1129839]
[1745286394422,0.3097898,88510.0,88506.0,0.0564916]
[1745286394423,0.2533,88510.0,88506.0,0.0564916]